Cogmind - Beta 15 @@@ ROGUE MODE // 2025.10.07 @ 10:50:53 Player: Guke117 Result: Self-destructed Performance ------------- Evolutions (2) 1000 Regions Visited (3) 600 Robots Destroyed (5) 25 Value Destroyed (190) 190 Prototype IDs (0) 0 Alien Tech Used (0) 0 Bonus (0) 0 TOTAL SCORE: 1815 Bonus ------- None Cogmind --------- Core Integrity 492/550 Matter 300/300 Energy 315/315 System Corruption 0% Temperature Cool (0) Movement Walking (120) Location -8/Materials Parts ------- > --- POWER (1) -------- Neutrino Core > --- PROPULSION (4) --- Carbon-fiber Leg Carbon-fiber Leg Myomer Leg Myomer Leg > --- UTILITY (3) ------ Subdweller Optics > --- WEAPON (3) ------- Medium Laser Battle Rifle Grenade Launcher > --- INVENTORY (5) ---- Carbon-fiber Leg Carbon-fiber Leg Medium Laser Field Laser Light Assault Rifle Peak State ------------ > --- POWER ------------ Neutrino Core > --- PROPULSION ------- Carbon-fiber Leg Carbon-fiber Leg Myomer Leg Myomer Leg > --- UTILITY ---------- Subdweller Optics > --- WEAPON ----------- Medium Laser Battle Rifle Grenade Launcher > --- INVENTORY -------- Carbon-fiber Leg Carbon-fiber Leg Medium Laser Field Laser Light Assault Rifle [Rating: 33] Favorites ----------- Power Light Ion Engine Engine Light Ion Engine Power Core Neutrino Core Propulsion Aluminum Leg Leg Aluminum Leg Utility Subdweller Optics Device Subdweller Optics Weapon Medium Laser Energy Gun Medium Laser Ballistic Gun Light Assault Rifle Launcher Grenade Launcher Build | -11 -10 -10 -8 ------- Run | Yrd Mat Sub Mat Slots Evolved 4 | . . . 4 Power . | . . . . Propulsion 2 | . . . 2 Utility 1 | . . . 1 Weapon 1 | . . . 1 Parts Attached 14 | 5 . 6 3 Power 2 | 1 . 1 . Engine 1 | 1 . . . Core 1 | . . 1 . Reactor . | . . . . Propulsion 6 | 2 . 2 2 Treads . | . . . . Leg 6 | 2 . 2 2 Wheel . | . . . . Hover . | . . . . Flight . | . . . . Utility 2 | . . 2 . Device 2 | . . 2 . Storage . | . . . . Processor . | . . . . Hackware . | . . . . Protection . | . . . . Artifact . | . . . . Weapon 4 | 2 . 1 1 Energy Gun 1 | 1 . . . Energy Cannon . | . . . . Ballistic Gun 2 | 1 . 1 . Ballistic Cannon . | . . . . Launcher 1 | . . . 1 Special Weapon . | . . . . Impact Weapon . | . . . . Slashing Weapon . | . . . . Piercing Weapon . | . . . . Special Melee Weapon . | . . . . Unidentified Prototypes . | . . . . Parts Lost 2 | . . 2 . Power 1 | . . 1 . Propulsion 1 | . . 1 . Utility . | . . . . Weapon . | . . . . Highest Loss Streak 2 | . . 2 . To Critical Strikes . | . . . . Average Backups 3 | . 3 3 4 Power . | . . . . Propulsion . | . . . . Utility . | . . . . Weapon 2 | . 2 3 3 Tool/Special . | . . . . Unused Backups 7 | . . 2 5 Power . | . . . . Propulsion 2 | . . . 2 Utility 2 | . . 2 . Weapon 3 | . . . 3 Tool/Special . | . . . . Average Slot Usage (%) 72 | . 71 74 71 Engine 7 | . 14 7 . Core 4 | . . 6 9 Leg 27 | . 28 27 27 Device 4 | . . 4 9 Energy Gun 12 | . 14 14 9 Ballistic Gun 12 | . 14 14 9 Launcher 1 | . . . 7 Peak Build Rating 33 | 5 5 27 33 Average Rating 12 | 3 5 13 29 On Entrance 8 | . 5 5 25 Naked Turns . | . . . . Heaviest Build 23 | 6 6 20 23 Greatest Support 80 | 20 20 50 80 Greatest Overweight (x) . | . . . . Average Overweight (x) . | . . . . Largest Inventory Capacity 5 | 5 5 5 5 Average Capacity 5 | 5 5 5 5 Most Carried 5 | 3 4 5 5 Average Carried 3 | . 3 4 4 Final Capacity 5 | 5 5 5 5 Final Carried 5 | 2 4 4 5 Class Distribution -------------------- 59% | Mutant 20% | Scavenger-Mutant 20% | Scavenger-Skirmisher Dominant Class ---------------- Mutant | -10/Materials Scavenger-Mutant | -10/Subcaves Scavenger-Skirmisher | -8/Materials Resources | -11 -10 -10 -8 ----------- Run | Yrd Mat Sub Mat Matter Collected 394 | 254 . 53 87 Remotely . | . . . . Salvage Created 208 | 47 . 34 127 Parts 12 | 1 . 2 9 Haulers Intercepted . | . . . . Recyclers Shooed . | . . . . Parts Field Recycled . | . . . . Retrieved Matter . | . . . . Parts Self-Destructed 2 | . . 2 . Prevented . | . . . . Kills | -11 -10 -10 -8 ------- Run | Yrd Mat Sub Mat Combat Hostiles Destroyed 4 | 1 . 1 2 Guns 4 | 1 . 1 2 Classes Destroyed 4 | 1 . 1 2 Operator 1 | . . . 1 Grunt 1 | 1 . . . Sentry 2 | . . . 2 Subdweller 1 | . . 1 . Best Kill Streak 2 | 1 . 1 2 Combat Bots Only 2 | 1 . 1 2 Max Kills in Single Turn 1 | 1 . 1 1 Gunslinging . | . . . . Exploded . | . . . . Melee . | . . . . Uniques/NPCs Destroyed . | . . . . Combat | -11 -10 -10 -8 -------- Run | Yrd Mat Sub Mat Hostile Shots Fired 35 | 5 . 18 12 Missed 10 | 3 . 5 2 Hits 25 | 2 . 13 10 Projectile 25 | 2 . 13 10 Damage Taken 487 | 23 . 283 181 Core 152 | 11 . 83 58 Absorbed by Shields . | . . . . Core Remaining (%) 78 | 95 . 62 . Volleys Fired 21 | 4 2 6 9 Largest 3 | 2 1 2 3 Hottest 105 | 70 20 70 105 Shots Fired 41 | 8 2 12 19 Gun 40 | 8 2 12 18 Cannon . | . . . . Launcher 1 | . . . 1 Special . | . . . . Kinetic 21 | 4 2 6 9 Thermal 19 | 4 . 6 9 Explosive 1 | . . . 1 Electromagnetic . | . . . . Robot Hit Streak 12 | 8 . 9 12 Robot Miss Streak 2 | . 2 1 2 Penetration Max . | . . . . Secondary Targets 1 | . . 1 . Max Gunslinging Chain 1 | . . 1 . Shots Hit Robots 31 | 8 . 11 12 Core Hits 8 | 2 . 1 5 Critical Kills 1 | . . . 1 Critical Parts Destroyed . | . . . . Critical Strikes 1 | . . . 1 Destroy 1 | . . . 1 Melee Attacks . | . . . . Impact . | . . . . Slashing . | . . . . Piercing . | . . . . Sneak Attacks . | . . . . Combat Hostiles . | . . . . Follow-up Attacks . | . . . . Damage Inflicted 348 | 81 . 98 169 Guns 348 | 81 . 98 169 Cannons . | . . . . Explosions . | . . . . Melee . | . . . . Ramming . | . . . . Kinetic 150 | 32 . 37 81 Thermal 198 | 49 . 61 88 Explosive . | . . . . Electromagnetic . | . . . . Impact . | . . . . Slashing . | . . . . Piercing . | . . . . Highest Corruption . | . . . . Average Corruption . | . . . . Corruption Purged . | . . . . Corruption Blocked . | . . . . Overload Shots . | . . . . Overflow Damage . | . . . . Projectiles . | . . . . Explosions . | . . . . Melee . | . . . . Knockbacks . | . . . . Impact . | . . . . Kinetic . | . . . . Secondary . | . . . . Self-Inflicted Damage 38 | . . . 38 Shots 1 | . . . 1 Rammed . | . . . . Targets Rammed . | . . . . Kicked . | . . . . Crushed . | . . . . Highest Temperature 169 | 72 . 1 169 Average Temperature 59 | 36 . 1 72 Received Heat Transfer 111 | 12 . 45 54 Siege Activations . | . . . . Martial Activations . | . . . . Shielding Activations . | . . . . Robots Disrupted . | . . . . Combat Hostiles . | . . . . Robots Corrupted . | . . . . Combat Hostiles . | . . . . Parts Fried . | . . . . Impact Corruptions . | . . . . Robots Melted . | . . . . Combat Hostiles . | . . . . Parts Melted 1 | 1 . . . Heat Transferred 592 | 148 . 185 259 Parts Sabotaged . | . . . . Parts Stolen . | . . . . Parts Stripped . | . . . . Power Chain Reactions . | . . . . Alert | -11 -10 -10 -8 ------- Run | Yrd Mat Sub Mat Maximum Alert Level . | . . . . Low Security (%) 100 | 100 100 . 100 Level 1 . | . . . . Level 2 . | . . . . Level 3 . | . . . . Level 4 . | . . . . Level 5 . | . . . . High Security . | . . . . Max Security . | . . . . Peak Influence 50 | 20 13 . 50 Initial 13 | . 13 . . Average 6 | 2 1 . 15 Influence Increases 111 | 20 2 . 89 Destroy 0b10 Robot/C 60 | 20 . . 40 Destroy 0b10 Robot/NC 5 | . . . 5 Destroy Leader 20 | . . . 20 Successful Hack 4 | . 2 . 2 Disable Machine 15 | . . . 15 Destroy Structure 7 | . . . 7 Influence Decreases 71 | . 22 . 49 Entered New Map 7 | . 7 . . Time Decay 64 | . 15 . 49 Squads Dispatched 2 | . 2 . . Investigation 1 | . 1 . . Extermination . | . . . . Reinforcement 1 | . 1 . . Assault . | . . . . Garrison . | . . . . Intercept . | . . . . Searches Triggered . | . . . . Construction Impeded . | . . . . Haulers Reinforced . | . . . . Active Scanning Responses . | . . . . Cargo Convoy Interrupts . | . . . . Stealth | -11 -10 -10 -8 --------- Run | Yrd Mat Sub Mat Distress Signals . | . . . . Communications Jammed . | . . . . Distress Signals . | . . . . Times Spotted 13 | 1 2 7 3 Peak Tracking Total 7 | 1 2 7 2 Tactical Retreats . | . . . . Traps | -11 -10 -10 -8 ------- Run | Yrd Mat Sub Mat Traps Triggered . | . . . . Indirectly . | . . . . Trap Hack Attempts . | . . . . Triggered . | . . . . Disarmed . | . . . . Reprogrammed . | . . . . Reused . | . . . . Traps Extracted . | . . . . Installed . | . . . . Triggered . | . . . . Machines | -11 -10 -10 -8 ---------- Run | Yrd Mat Sub Mat Machines Disabled 1 | . . . 1 Max in Single Turn 1 | . . . 1 Machines Repaired . | . . . . Machines Dismantled . | . . . . Machines Sabotaged . | . . . . Overloaded Fab Kills . | . . . . Hacking | -11 -10 -10 -8 --------- Run | Yrd Mat Sub Mat Machines Accessed 4 | . 2 . 2 Terminals 3 | . 2 . 1 Fabricators . | . . . . Repair Stations . | . . . . Recycling Units . | . . . . Scanalyzers 1 | . . . 1 Garrison Access . | . . . . Total Hacks 15 | . 9 . 6 Successful 9 | . 6 . 3 Failed 6 | . 3 . 3 Catastrophic . | . . . . Database Lockouts . | . . . . Manual . | . . . . Terminals 11 | . 9 . 2 Fabricators . | . . . . Repair Stations . | . . . . Recycling Units . | . . . . Scanalyzers 4 | . . . 4 Garrison Access . | . . . . Terminal Hacks 8 | . 6 . 2 Record 7 | . 5 . 2 Alert Level 1 | . 1 . . Fabricator Hacks . | . . . . Repair Station Hacks . | . . . . Recycling Unit Hacks . | . . . . Scanalyzer 1 | . . . 1 Insert Component 1 | . . . 1 Garrison Access Hacks . | . . . . Unauthorized Hacks . | . . . . Terminals . | . . . . Fabricators . | . . . . Repair Stations . | . . . . Recycling Units . | . . . . Scanalyzers . | . . . . Garrison Access . | . . . . Data Cores Recovered . | . . . . Used . | . . . . Hacking Detections 4 | . 2 . 2 Full Trace Events 1 | . 1 . . Feedback Events . | . . . . Feedback Blocked . | . . . . Robot Schematics Acquired . | . . . . Robots Built . | . . . . Authchips . | . . . . Time . | . . . . Total Robot Build Rating . | . . . . Part Schematics Acquired . | . . . . Parts Built . | . . . . Authchips . | . . . . Time . | . . . . Total Part Build Rating . | . . . . Parts Repaired . | . . . . Time . | . . . . Parts Recycled . | . . . . Recycled Matter . | . . . . Retrieved Matter . | . . . . Retrieved Components . | . . . . Parts Scanalyzed 1 | . . . 1 Part Schematics Acquired . | . . . . Parts Damaged . | . . . . Bothacking | -11 -10 -10 -8 ------------ Run | Yrd Mat Sub Mat Used RIF Installer . | . . . . Robots Hacked . | . . . . Non-combat . | . . . . Combat . | . . . . Robot Hacks Applied . | . . . . Relay Couplers Released . | . . . . Fabnet Peak Effective % . | . . . . Robots Rewired . | . . . . Allies Hacked . | . . . . Hacks Repelled . | . . . . Allies | -11 -10 -10 -8 -------- Run | Yrd Mat Sub Mat Total Allies . | . . . . Largest Group . | . . . . Highest-Rated Group . | . . . . Highest-Rated Ally . | . . . . Total Orders . | . . . . Ally Attacks . | . . . . Total Damage . | . . . . Kills . | . . . . Allies Corrupted . | . . . . Allies Melted . | . . . . Intel | -11 -10 -10 -8 ------- Run | Yrd Mat Sub Mat Active Infowar (turns) 228 | . . 88 140 Optics 228 | . . 88 140 Robot Analysis Total . | . . . . Derelict Logs Recovered . | . . . . Drone Launches . | . . . . Drone Recoveries . | . . . . Exploration | -11 -10 -10 -8 ------------- Run | Yrd Mat Sub Mat Turns Passed 703 | 97 204 262 140 Spaces Moved 517 | 83 153 194 87 Core 38 | 38 . . . Treads . | . . . . Legs 479 | 45 153 194 87 Wheels . | . . . . Hover . | . . . . Flight . | . . . . Fastest Speed 50 | 50 120 120 120 Average Speed 114 | 87 120 120 120 Slowest Speed 120 | 120 120 120 120 Overloaded Moves . | . . . . Propulsion Burnouts . | . . . . Robots Hopped . | . . . . Potential Cave-ins . | . . . . Cave-ins Triggered . | . . . . Exploration Rate (%) 10 | 6 14 14 8 Regions Visited 3 Branch Regions 1 Pre-discovered Areas . | . . . . Known Exits Taken . | . . . . Unknown Exits Taken 3 | 1 1 1 . Scrap Searched . | . . . . Spaces Dug . | . . . . Terrain Destroyed 6 | . . . 6 Melee . | . . . . Projectile . | . . . . AOE 6 | . . . 6 Terrain Rammed . | . . . . Walls Destroyed . | . . . . Machines Disabled . | . . . . Actions | -11 -10 -10 -8 --------- Run | Yrd Mat Sub Mat Total 588 | 100 172 211 105 Wait 18 | 2 16 . . Move 514 | 82 152 193 87 Hop . | . . . . Pick Up 14 | 7 2 2 3 Fast Attach 7 | . . 5 2 Attach 7 | 5 . . 2 Detach 1 | . . . 1 Swap 1 | . . 1 . Drop 5 | . . 4 1 Fire 21 | 4 2 6 9 Melee . | . . . . Ram . | . . . . Kick . | . . . . Crush . | . . . . Escape Stasis . | . . . . Rewire . | . . . . Trap . | . . . . Miscellaneous . | . . . . Route ------- -11/Scrapyard -10/Materials -10/Subcaves -8/Materials History --------- Turn | Location | Event 2 | -11/Scrapyard | Met Revision 17 71 | -11/Scrapyard | Discovered new exit (range 8) 98 | -11/Scrapyard | Entered Materials 132 | -10/Materials | Discovered new exit (range 5) 302 | -10/Materials | Entered Subcaves 308 | -10/Subcaves | Build established: Mutant 337 | -10/Subcaves | A swath of the cavern ceiling suddenly collapsed 404 | -10/Subcaves | Ambushed by swarm of Subdwellers 526 | -10/Subcaves | A swath of the cavern ceiling suddenly collapsed 555 | -10/Subcaves | Discovered new exit (range 5) 564 | -10/Subcaves | Entered Materials 564 | -8/Materials | Evolved 4 slots: Propulsion x2, Utility x1, Weapon x1 704 | -8/Materials | Self-destructed Last Messages --------------- deeper in the [Caves], which extend furthest at those depths. [Achievement: Crack Shot] O-16 Technician destroyed. Terminal disabled. U-05 Engineer lays Concrete. U-05 Engineer builds a Wall. U-05 Engineer lays Concrete. Acquired Field Laser. Acquired Carbon-fiber Leg. Connecting with Scanalyzer... >>Insert(Myomer Leg) Scanning Myomer Leg... Ready to analyze. Dropped Sml. Laser. Acquired Carbon-fiber Leg. Y-45 Defender suffers critical hit (Destroy). Y-45 Defender destroyed. Acquired 59 matter. Acquired 28 matter. Map ----- +----------------------------------------------------+ | ????????????????????????????????????????? | | ????????????????????????????????????????? | | ????????????????????????????????????????? | | ????????????????????????????????????????? | | ????????????????????????????????????????? | | ????????????????????????????????????????? | | ????????????????????????????????????????? | | ????????????????????????????????????????? | | ????????????????????????????????????????? | | ????????????????????????????????????????? | | ????????????????????????????????????????? | | ??????????? #??????????????????????????? | | ??????????? #??????????????????????????? | | ??????????? #??????????????????????????? | | ??????????# ##?????????????????????????? | | ?????????? #?????????????????????????? | | ?????????? #?????????????????????????? | | ??????????! ??????????????????????????? | | ?????????? ???????????????????????????? | | ????????###+###########?????????????????? | | ????????#[[! T #?????????????????? | | ????????#!""" """ #?????????????????? | | ???????##%""" """ #?????????????????? | | ???????#![""" """ #?????????????????? | | ???????## * ! = #?????????????????? | | ????????#= ! @ #?????????????????? | | ?????######+###+#######?????????????????? | | ??# + #??????????????????????? | | ??# T # #??????????????????????? | | ??#] ??# #??????????????????????? | | ??####????# + ???????????????????? | | ???########+## # #???????????????? | | ???# ## #? #???????????????? | | ???# ] ## #??#####???????????????? | | ???# ] =## #??????????????????????? | | ???# ] ## ##?????????????????????? | | ???# ## ??????????????????????? | | ???#"S[ """ ## ##?????????????????????? | | ???#""" """ ## ############???????????? | | ???# "" """ ## ## #???????????? | | ???# ## ## #???????????? | | ???######+### """ """ #???????????? | | ?????# """ """ #???????????? | | ?????# """ """ #???????????? | | ?????# = #???????????? | | ?????####+### #???????????? | | ????????????## # #???????????? | | ?????????????# ############???????????? | | ?????????????# #??????????????????????? | | ?????????????# #??????????????????????? | +----------------------------------------------------+ Best States ------------- Heat Dissipation 31 Energy Generation 19 Energy Capacity 315 Matter Stores 300 Matter Capacity 300 Sight Range 21 Terrain Scan Density 10 Evasion (%) 55 Item Schematics ----------------- None Robot Schematics ------------------ None Fabricated ------------ Nothing Repaired ---------- Nothing Alien Tech Used ----------------- None Achievements -------------- Crack Shot One Hack Too Far Uninvited Guest Challenges ------------ None Game ------ Seed HeavyStructuralBlade Manual? 0 Play Time 00:25:30 Cumulative 0.4 hours Start 2025.10.07 @ 09:38:59 End 2025.10.07 @ 10:50:53 Sessions 1 Manual Loads 0 Difficulty Rogue Special Mode None Game No. 1 Rogue 1 Adventurer 0 Explorer 0 Win Type - Total 0 Types 0/0/0/0/0/0/0/0/0/0 Lore% 0 Gallery% 0 Achievement% 1 Wizard Run 0 Options --------- Layout 1 ASCII 0 Keyboard 0 Movement Mouse Keybinds 0 Fullscreen 0 Font 32/Smallcaps Map View 25x17 Zoom Use 95% Tactical HUD 0 Map Filters NONE Filters NONE Steam 1 RUN: 2c93b383-b48c-43f6-b4a5-cb6e972ad167